[Event "*** SCC Grand Prix: Titled Tuesday Blitz"]
[Site "Chess.com"]
[Date "2020.10.06"]
[Round "10"]
[White "Viaje"]
[Black "remi04"]
[Result "1-0"]
[WhiteElo "2394"]
[BlackElo "2522"]
[TimeControl "180+1"]
[EndTime "11:58:20 PDT"]
[Termination "Viaje won by resignation"]

1. d4 {[%clk 0:03:00.9]} 1... d5 {[%clk 0:02:59.6]} 2. c4 {[%clk 0:03:01]} 2...
c6 {[%clk 0:02:59.7]} 3. Nf3 {[%clk 0:03:01]} 3... e6 {[%clk 0:02:59.8]} 4. Qc2
{[%clk 0:03:00.8]} 4... Nf6 {[%clk 0:03:00]} 5. Bg5 {[%clk 0:02:58]} 5... Nbd7
{[%clk 0:02:59.9]} 6. e3 {[%clk 0:02:58.1]} 6... Qa5+ {[%clk 0:02:53.4]} 7. Nc3
{[%clk 0:02:57.8]} 7... Ne4 {[%clk 0:02:50.7]} 8. Bh4 {[%clk 0:02:56.6]} 8...
Bb4 {[%clk 0:02:47.2]} 9. Rc1 {[%clk 0:02:55.7]} 9... Nxc3 {[%clk 0:02:44.1]}
10. bxc3 {[%clk 0:02:54.8]} 10... Ba3 {[%clk 0:02:43.5]} 11. Rb1 {[%clk
0:02:53.9]} 11... b6 {[%clk 0:02:43.7]} 12. cxd5 {[%clk 0:02:51.7]} 12... exd5
{[%clk 0:02:41.8]} 13. Bd3 {[%clk 0:02:51]} 13... h6 {[%clk 0:02:39.8]} 14. O-O
{[%clk 0:02:50.4]} 14... Ba6 {[%clk 0:02:39]} 15. c4 {[%clk 0:02:48.7]} 15...
O-O {[%clk 0:02:32.2]} 16. Rfd1 {[%clk 0:02:42.1]} 16... Rac8 {[%clk 0:02:26.7]}
17. Bf5 {[%clk 0:02:41.1]} 17... Rc7 {[%clk 0:02:07.1]} 18. cxd5 {[%clk
0:02:32.9]} 18... Qxd5 {[%clk 0:02:02.2]} 19. e4 {[%clk 0:02:31.9]} 19... Qc4
{[%clk 0:02:00.4]} 20. Qd2 {[%clk 0:02:20.5]} 20... Bc8 {[%clk 0:01:53.5]} 21.
Qf4 {[%clk 0:02:06.6]} 21... Rb7 {[%clk 0:01:52.5]} 22. Qg4 {[%clk 0:02:00.7]}
22... Re8 {[%clk 0:01:31.6]} 23. e5 {[%clk 0:01:37.9]} 23... Qd5 {[%clk
0:01:19.5]} 24. Rb3 {[%clk 0:01:13.4]} 24... Bf8 {[%clk 0:01:15.2]} 25. Qf4
{[%clk 0:00:53.7]} 25... g6 {[%clk 0:01:08.1]} 26. Be4 {[%clk 0:00:53]} 26...
Qc4 {[%clk 0:01:03.4]} 27. Rc1 {[%clk 0:00:51.4]} 27... Qa6 {[%clk 0:00:56.7]}
28. Rxc6 {[%clk 0:00:45.6]} 28... Qxa2 {[%clk 0:00:54.3]} 29. Rbc3 {[%clk
0:00:44.6]} 29... Rb8 {[%clk 0:00:45.6]} 30. Rc7 {[%clk 0:00:29.1]} 30... b5
{[%clk 0:00:45.1]} 31. d5 {[%clk 0:00:20.1]} 31... b4 {[%clk 0:00:43.8]} 32. Rc2
{[%clk 0:00:20.2]} 32... Qa6 {[%clk 0:00:26.7]} 33. e6 {[%clk 0:00:19.7]} 33...
fxe6 {[%clk 0:00:16.7]} 34. Bxg6 {[%clk 0:00:19.7]} 34... Qa1+ {[%clk
0:00:08.2]} 35. Rc1 {[%clk 0:00:18.9]} 35... Qg7 {[%clk 0:00:06.1]} 36. dxe6
{[%clk 0:00:17]} 36... Rxe6 {[%clk 0:00:05.1]} 37. Bf5 {[%clk 0:00:16.4]} 37...
Rd6 {[%clk 0:00:03.1]} 38. Rxd7 {[%clk 0:00:15.4]} 38... Bxd7 {[%clk 0:00:01.9]}
39. Ne5 {[%clk 0:00:14.8]} 39... Bxf5 {[%clk 0:00:01.3]} 40. Qxf5 {[%clk
0:00:14.7]} 40... b3 {[%clk 0:00:01.8]} 41. Nc4 {[%clk 0:00:11.6]} 41... b2
{[%clk 0:00:02.3]} 42. Nxb2 {[%clk 0:00:10.8]} 42... Rxb2 {[%clk 0:00:01.5]} 43.
Rf1 {[%clk 0:00:11.4]} 43... Kh8 {[%clk 0:00:01.8]} 44. h3 {[%clk 0:00:11.8]}
44... Rd7 {[%clk 0:00:02.3]} 45. Bg3 {[%clk 0:00:12.2]} 45... Rb8 {[%clk
0:00:03.2]} 46. Be5 {[%clk 0:00:12.5]} 46... Re8 {[%clk 0:00:04.1]} 47. Bxg7+
{[%clk 0:00:12.9]} 47... Bxg7 {[%clk 0:00:04.6]} 48. Qg4 {[%clk 0:00:13.6]}
48... Rg8 {[%clk 0:00:05.1]} 49. Qf3 {[%clk 0:00:13.8]} 49... Rf7 {[%clk
0:00:06]} 50. Qxf7 {[%clk 0:00:12.9]} 50... Kh7 {[%clk 0:00:06.9]} 51. Qe6
{[%clk 0:00:13.1]} 1-0

[Event "*** SCC Grand Prix: Titled Tuesday Blitz"]
[Site "Chess.com"]
[Date "2020.10.06"]
[Round "10"]
[White "tigra"]
[Black "GHANDEEVAM2003"]
[Result "0-1"]
[WhiteElo "2843"]
[BlackElo "2975"]
[TimeControl "180+1"]
[EndTime "11:58:21 PDT"]
[Termination "GHANDEEVAM2003 won by resignation"]

1. e4 {[%clk 0:03:00.9]} 1... c5 {[%clk 0:02:59.9]} 2. Nf3 {[%clk 0:03:00.2]}
2... d6 {[%clk 0:02:59.1]} 3. Nc3 {[%clk 0:02:56.5]} 3... Nf6 {[%clk 0:02:57.4]}
4. e5 {[%clk 0:02:56.8]} 4... dxe5 {[%clk 0:02:56.2]} 5. Nxe5 {[%clk 0:02:57.7]}
5... a6 {[%clk 0:02:52.9]} 6. g3 {[%clk 0:02:57.1]} 6... Nbd7 {[%clk 0:02:51.6]}
7. Nc4 {[%clk 0:02:56.6]} 7... b5 {[%clk 0:02:50.8]} 8. Bg2 {[%clk 0:02:55.6]}
8... Rb8 {[%clk 0:02:47.5]} 9. Ne3 {[%clk 0:02:50.1]} 9... Bb7 {[%clk
0:02:46.9]} 10. Bxb7 {[%clk 0:02:48.6]} 10... Rxb7 {[%clk 0:02:47.8]} 11. d4
{[%clk 0:02:49.4]} 11... cxd4 {[%clk 0:02:42.4]} 12. Qxd4 {[%clk 0:02:50.3]}
12... e6 {[%clk 0:02:43]} 13. Ne4 {[%clk 0:02:41.9]} 13... Qb6 {[%clk 0:02:39]}
14. Qxb6 {[%clk 0:02:36]} 14... Rxb6 {[%clk 0:02:31]} 15. Nxf6+ {[%clk
0:02:33.2]} 15... gxf6 {[%clk 0:02:29.7]} 16. Bd2 {[%clk 0:02:31.6]} 16... Rc6
{[%clk 0:02:27.4]} 17. O-O-O {[%clk 0:02:30.6]} 17... h5 {[%clk 0:02:26.8]} 18.
a3 {[%clk 0:02:26.5]} 18... h4 {[%clk 0:02:23.4]} 19. g4 {[%clk 0:02:25.5]}
19... h3 {[%clk 0:02:21.7]} 20. Bc3 {[%clk 0:02:03.5]} 20... Bh6 {[%clk
0:02:00.8]} 21. Rhg1 {[%clk 0:01:57.8]} 21... Bf4 {[%clk 0:01:59]} 22. Rh1
{[%clk 0:01:41.5]} 22... Ne5 {[%clk 0:01:49.5]} 23. Rd4 {[%clk 0:01:41.2]} 23...
Rc4 {[%clk 0:01:39.3]} 24. Rxc4 {[%clk 0:01:34.8]} 24... Nxc4 {[%clk 0:01:34.1]}
25. Bxf6 {[%clk 0:01:34.3]} 25... Rg8 {[%clk 0:01:33.3]} 26. Rd1 {[%clk
0:01:28]} 26... Nd6 {[%clk 0:01:26.9]} 27. c4 {[%clk 0:01:02.5]} 27... bxc4
{[%clk 0:01:01.7]} 28. Kb1 {[%clk 0:00:42.1]} 28... Kf8 {[%clk 0:00:39.1]} 29.
Nxc4 {[%clk 0:00:30.4]} 29... Ne8 {[%clk 0:00:39]} 30. Rd8 {[%clk 0:00:22.2]}
30... Rg6 {[%clk 0:00:37.9]} 31. Be5 {[%clk 0:00:14.2]} 31... Rxg4 {[%clk
0:00:28.4]} 32. Bxf4 {[%clk 0:00:13.8]} 32... Rxf4 {[%clk 0:00:29.3]} 33. Nd6
{[%clk 0:00:09.3]} 33... Ke7 {[%clk 0:00:29.7]} 34. Rxe8+ {[%clk 0:00:09.8]}
34... Kxd6 {[%clk 0:00:30.3]} 35. Rh8 {[%clk 0:00:10.7]} 35... Rf3 {[%clk
0:00:29]} 36. a4 {[%clk 0:00:08.6]} 36... a5 {[%clk 0:00:27.1]} 37. Kc2 {[%clk
0:00:04.9]} 37... Rxf2+ {[%clk 0:00:26.6]} 38. Kc3 {[%clk 0:00:05.2]} 38... Rxh2
{[%clk 0:00:27.5]} 39. b4 {[%clk 0:00:06.1]} 39... axb4+ {[%clk 0:00:26.1]} 40.
Kxb4 {[%clk 0:00:06.3]} 40... Rh1 {[%clk 0:00:26]} 41. Ka5 {[%clk 0:00:05.3]}
41... h2 {[%clk 0:00:25.5]} 42. Rd8+ {[%clk 0:00:05.6]} 42... Ke5 {[%clk
0:00:25.3]} 43. Rd2 {[%clk 0:00:06.5]} 43... f5 {[%clk 0:00:24.7]} 44. Re2+
{[%clk 0:00:06.7]} 44... Kf6 {[%clk 0:00:24.7]} 45. Ra2 {[%clk 0:00:05.4]} 45...
f4 {[%clk 0:00:24.2]} 46. Ka6 {[%clk 0:00:06.3]} 46... f3 {[%clk 0:00:22.6]} 47.
a5 {[%clk 0:00:07.2]} 47... e5 {[%clk 0:00:22.3]} 48. Ka7 {[%clk 0:00:06.2]}
48... e4 {[%clk 0:00:22.8]} 49. a6 {[%clk 0:00:06.6]} 49... e3 {[%clk
0:00:23.4]} 50. Ka8 {[%clk 0:00:06.9]} 50... f2 {[%clk 0:00:23.2]} 51. a7 {[%clk
0:00:06]} 0-1

[Event "*** SCC Grand Prix: Titled Tuesday Blitz"]
[Site "Chess.com"]
[Date "2020.10.06"]
[Round "10"]
[White "Vadim_Biliy"]
[Black "mr65"]
[Result "1-0"]
[WhiteElo "2313"]
[BlackElo "2158"]
[TimeControl "180+1"]
[EndTime "11:58:21 PDT"]
[Termination "Vadim_Biliy won on time"]

1. d4 {[%clk 0:03:00.9]} 1... Nf6 {[%clk 0:02:59.5]} 2. Nf3 {[%clk 0:03:00.6]}
2... g6 {[%clk 0:02:59.4]} 3. e3 {[%clk 0:03:01.2]} 3... Bg7 {[%clk 0:02:58.2]}
4. Be2 {[%clk 0:03:01.8]} 4... O-O {[%clk 0:02:57.6]} 5. O-O {[%clk 0:03:02.3]}
5... d6 {[%clk 0:02:55.4]} 6. b4 {[%clk 0:03:02.7]} 6... a5 {[%clk 0:02:54.4]}
7. b5 {[%clk 0:03:01]} 7... b6 {[%clk 0:02:52.9]} 8. Bb2 {[%clk 0:02:59.8]} 8...
Bb7 {[%clk 0:02:52.7]} 9. a4 {[%clk 0:02:58.1]} 9... Nbd7 {[%clk 0:02:52.2]} 10.
c4 {[%clk 0:02:53.7]} 10... e5 {[%clk 0:02:51.3]} 11. Nc3 {[%clk 0:02:48]} 11...
e4 {[%clk 0:02:43.8]} 12. Nd2 {[%clk 0:02:47]} 12... Qe7 {[%clk 0:02:38.5]} 13.
Qc2 {[%clk 0:02:42.2]} 13... Rae8 {[%clk 0:02:37.8]} 14. Rae1 {[%clk 0:02:37.7]}
14... Nh5 {[%clk 0:02:36.1]} 15. Bxh5 {[%clk 0:02:28.9]} 15... gxh5 {[%clk
0:02:35.6]} 16. d5 {[%clk 0:02:28.9]} 16... f5 {[%clk 0:02:33.1]} 17. f3 {[%clk
0:02:26.5]} 17... exf3 {[%clk 0:02:23.5]} 18. Rxf3 {[%clk 0:02:25.2]} 18... Ne5
{[%clk 0:02:14.9]} 19. Rxf5 {[%clk 0:02:20.2]} 19... Rxf5 {[%clk 0:02:13.5]} 20.
Qxf5 {[%clk 0:02:19.3]} 20... Bc8 {[%clk 0:02:12.1]} 21. Qe4 {[%clk 0:01:50.1]}
21... Rf8 {[%clk 0:02:11]} 22. Rf1 {[%clk 0:01:43.5]} 22... Bh6 {[%clk
0:02:02.5]} 23. Rxf8+ {[%clk 0:01:39.8]} 23... Qxf8 {[%clk 0:02:01]} 24. Nf3
{[%clk 0:01:21.2]} 24... Bf5 {[%clk 0:01:55.5]} 25. Qd4 {[%clk 0:01:20.5]} 25...
Nd3 {[%clk 0:01:42.2]} 26. Nd1 {[%clk 0:01:07.6]} 26... Nxb2 {[%clk 0:01:40.8]}
27. Qxb2 {[%clk 0:01:01.3]} 27... Be4 {[%clk 0:01:33.7]} 28. Qf2 {[%clk
0:00:55.9]} 28... Qe7 {[%clk 0:01:01.7]} 29. Nd4 {[%clk 0:00:50.9]} 29... Bg6
{[%clk 0:00:39.9]} 30. g3 {[%clk 0:00:28.7]} 30... h4 {[%clk 0:00:37.8]} 31.
gxh4 {[%clk 0:00:26.8]} 31... Bh5 {[%clk 0:00:34.4]} 32. Nf5 {[%clk 0:00:21.9]}
32... Qf6 {[%clk 0:00:24.3]} 33. Nxh6+ {[%clk 0:00:21.4]} 33... Qxh6 {[%clk
0:00:24.1]} 34. Qg3+ {[%clk 0:00:20.6]} 34... Kh8 {[%clk 0:00:21.3]} 35. Nf2
{[%clk 0:00:21]} 35... Qf6 {[%clk 0:00:16.7]} 36. Qf4 {[%clk 0:00:20.9]} 36...
Qa1+ {[%clk 0:00:11.5]} 37. Kg2 {[%clk 0:00:21]} 37... Kg7 {[%clk 0:00:11.2]}
38. Qg5+ {[%clk 0:00:20.5]} 38... Bg6 {[%clk 0:00:10.5]} 39. Kg3 {[%clk
0:00:19.8]} 39... Qe5+ {[%clk 0:00:06.7]} 40. Qxe5+ {[%clk 0:00:18.7]} 40...
dxe5 {[%clk 0:00:06.6]} 41. e4 {[%clk 0:00:18.3]} 41... Bh5 {[%clk 0:00:04.3]}
42. Ng4 {[%clk 0:00:16.3]} 42... h6 {[%clk 0:00:04]} 43. Nxe5 {[%clk 0:00:15.9]}
43... Bd1 {[%clk 0:00:03.7]} 44. Nc6 {[%clk 0:00:11.6]} 44... Bxa4 {[%clk
0:00:02.6]} 45. Nd8 {[%clk 0:00:11.8]} 1-0

[Event "*** SCC Grand Prix: Titled Tuesday Blitz"]
[Site "Chess.com"]
[Date "2020.10.06"]
[Round "10"]
[White "VladaSviridova"]
[Black "Fischerev7"]
[Result "0-1"]
[WhiteElo "2240"]
[BlackElo "2341"]
[TimeControl "180+1"]
[EndTime "11:58:22 PDT"]
[Termination "Fischerev7 won by resignation"]

1. d4 {[%clk 0:03:00.9]} 1... Nf6 {[%clk 0:02:48.7]} 2. c4 {[%clk 0:03:00.8]}
2... e6 {[%clk 0:02:38]} 3. Nf3 {[%clk 0:02:59.9]} 3... Bb4+ {[%clk 0:02:37.8]}
4. Bd2 {[%clk 0:02:59.9]} 4... a5 {[%clk 0:02:37.8]} 5. g3 {[%clk 0:02:59.7]}
5... O-O {[%clk 0:02:37.7]} 6. Bg2 {[%clk 0:03:00]} 6... d5 {[%clk 0:02:38.2]}
7. Qc2 {[%clk 0:02:59.4]} 7... c5 {[%clk 0:02:36.1]} 8. cxd5 {[%clk 0:02:58.6]}
8... cxd4 {[%clk 0:02:25.9]} 9. Nxd4 {[%clk 0:02:57.1]} 9... Nxd5 {[%clk
0:02:21.8]} 10. O-O {[%clk 0:02:54.3]} 10... e5 {[%clk 0:02:15.3]} 11. Nf3
{[%clk 0:02:43.8]} 11... Nc6 {[%clk 0:02:14.9]} 12. a3 {[%clk 0:02:42.2]} 12...
Be7 {[%clk 0:02:06.2]} 13. Nc3 {[%clk 0:02:41]} 13... Nxc3 {[%clk 0:02:05.1]}
14. Bxc3 {[%clk 0:02:41.1]} 14... Bf6 {[%clk 0:02:00.8]} 15. Rfd1 {[%clk
0:02:39.3]} 15... Qe7 {[%clk 0:02:00.7]} 16. Nd2 {[%clk 0:02:25]} 16... g6
{[%clk 0:01:44.4]} 17. e4 {[%clk 0:01:54.7]} 17... Be6 {[%clk 0:01:35.5]} 18.
Bf1 {[%clk 0:01:31]} 18... Qc5 {[%clk 0:01:12.8]} 19. Rac1 {[%clk 0:01:19.1]}
19... Rfd8 {[%clk 0:01:04.5]} 20. Qa4 {[%clk 0:01:10.9]} 20... Qb6 {[%clk
0:00:56.8]} 21. Bb5 {[%clk 0:00:56.5]} 21... Nd4 {[%clk 0:00:36.4]} 22. Bxd4
{[%clk 0:00:51.9]} 22... Rxd4 {[%clk 0:00:37.3]} 23. Bc4 {[%clk 0:00:42.5]}
23... Rad8 {[%clk 0:00:31.7]} 24. Bxe6 {[%clk 0:00:37.5]} 24... Rxa4 {[%clk
0:00:29.8]} 25. Nc4 {[%clk 0:00:29.8]} 25... Rxc4 {[%clk 0:00:22.5]} 26. Bxc4
{[%clk 0:00:29]} 26... Rxd1+ {[%clk 0:00:19.6]} 27. Rxd1 {[%clk 0:00:28.7]}
27... Qc7 {[%clk 0:00:17.4]} 28. b3 {[%clk 0:00:27.4]} 28... Kg7 {[%clk
0:00:16.6]} 29. a4 {[%clk 0:00:27.1]} 29... b6 {[%clk 0:00:16.7]} 30. Rd5 {[%clk
0:00:26.4]} 30... h5 {[%clk 0:00:15.5]} 31. h4 {[%clk 0:00:26.4]} 31... g5
{[%clk 0:00:15]} 32. hxg5 {[%clk 0:00:26.5]} 32... Bxg5 {[%clk 0:00:15.9]} 33.
Kg2 {[%clk 0:00:25.8]} 33... h4 {[%clk 0:00:16.3]} 34. f4 {[%clk 0:00:25.4]}
34... Bf6 {[%clk 0:00:13.1]} 35. f5 {[%clk 0:00:24.7]} 35... hxg3 {[%clk
0:00:12.7]} 36. Kxg3 {[%clk 0:00:24.7]} 36... Bg5 {[%clk 0:00:11.1]} 37. Kg4
{[%clk 0:00:24]} 37... Bf4 {[%clk 0:00:10.9]} 38. Rd3 {[%clk 0:00:21.8]} 38...
Qc6 {[%clk 0:00:10.5]} 39. Rh3 {[%clk 0:00:19.3]} 39... Qf6 {[%clk 0:00:10.1]}
40. Rd3 {[%clk 0:00:18.4]} 40... Qg5+ {[%clk 0:00:10]} 41. Kf3 {[%clk
0:00:18.4]} 41... Qg3+ {[%clk 0:00:10]} 42. Ke2 {[%clk 0:00:18.8]} 42... Qg2+
{[%clk 0:00:10.3]} 43. Kd1 {[%clk 0:00:19.1]} 43... Qxe4 {[%clk 0:00:07.3]} 44.
Rd7 {[%clk 0:00:19.2]} 44... Qb1+ {[%clk 0:00:05.4]} 45. Ke2 {[%clk 0:00:18.4]}
45... Qc2+ {[%clk 0:00:05.5]} 46. Kf3 {[%clk 0:00:17.5]} 46... Qxf5 {[%clk
0:00:05.2]} 47. Rxf7+ {[%clk 0:00:16.9]} 47... Qxf7 {[%clk 0:00:05.4]} 48. Bxf7
{[%clk 0:00:17.1]} 48... Kxf7 {[%clk 0:00:06.3]} 49. Ke4 {[%clk 0:00:17.2]}
49... Ke6 {[%clk 0:00:07.2]} 0-1

[Event "*** SCC Grand Prix: Titled Tuesday Blitz"]
[Site "Chess.com"]
[Date "2020.10.06"]
[Round "10"]
[White "PlotnikovPavel"]
[Black "MasterMK73"]
[Result "1-0"]
[WhiteElo "2357"]
[BlackElo "2216"]
[TimeControl "180+1"]
[EndTime "11:58:23 PDT"]
[Termination "PlotnikovPavel won on time"]

1. e4 {[%clk 0:02:54.7]} 1... c5 {[%clk 0:02:59.4]} 2. Nf3 {[%clk 0:02:53.8]}
2... a6 {[%clk 0:02:58.3]} 3. g3 {[%clk 0:02:53.4]} 3... Nc6 {[%clk 0:02:54.6]}
4. Bg2 {[%clk 0:02:52.3]} 4... e6 {[%clk 0:02:54.8]} 5. d3 {[%clk 0:02:47.5]}
5... g6 {[%clk 0:02:49.4]} 6. O-O {[%clk 0:02:41.4]} 6... Bg7 {[%clk 0:02:49.5]}
7. c3 {[%clk 0:02:41.4]} 7... Nge7 {[%clk 0:02:47.9]} 8. Re1 {[%clk 0:02:41.4]}
8... d6 {[%clk 0:02:40.3]} 9. Nbd2 {[%clk 0:02:39.2]} 9... O-O {[%clk
0:02:40.1]} 10. a4 {[%clk 0:02:38.5]} 10... e5 {[%clk 0:02:37.2]} 11. Nc4 {[%clk
0:02:37.1]} 11... h6 {[%clk 0:02:36.3]} 12. a5 {[%clk 0:02:37.2]} 12... Be6
{[%clk 0:02:31.9]} 13. h4 {[%clk 0:02:32.6]} 13... f5 {[%clk 0:02:22.7]} 14.
exf5 {[%clk 0:02:29.7]} 14... Bxf5 {[%clk 0:02:18]} 15. Nb6 {[%clk 0:02:28.4]}
15... Bg4 {[%clk 0:02:06]} 16. Nxa8 {[%clk 0:02:23]} 16... Qxa8 {[%clk
0:02:03.6]} 17. Qb3+ {[%clk 0:02:21.1]} 17... d5 {[%clk 0:01:56.3]} 18. Nh2
{[%clk 0:02:17.4]} 18... Be6 {[%clk 0:01:56.1]} 19. Qb6 {[%clk 0:02:16.6]} 19...
Qe8 {[%clk 0:01:38.1]} 20. Qxc5 {[%clk 0:02:15.4]} 20... Qf7 {[%clk 0:01:37.1]}
21. Nf3 {[%clk 0:02:09.9]} 21... Nf5 {[%clk 0:01:27.9]} 22. h5 {[%clk
0:02:05.9]} 22... gxh5 {[%clk 0:01:18.2]} 23. Bd2 {[%clk 0:01:44.5]} 23... d4
{[%clk 0:01:13.8]} 24. c4 {[%clk 0:01:39.7]} 24... h4 {[%clk 0:01:10]} 25. g4
{[%clk 0:01:14.8]} 25... Nfe7 {[%clk 0:01:05.8]} 26. b4 {[%clk 0:00:58.2]} 26...
Bxg4 {[%clk 0:01:04.2]} 27. Nh2 {[%clk 0:00:43]} 27... Qg6 {[%clk 0:00:58.8]}
28. Nxg4 {[%clk 0:00:36.8]} 28... Qxg4 {[%clk 0:00:58.7]} 29. Re4 {[%clk
0:00:36.1]} 29... Qf5 {[%clk 0:00:50.2]} 30. Rf1 {[%clk 0:00:30.8]} 30... h3
{[%clk 0:00:49.2]} 31. Bh1 {[%clk 0:00:30.1]} 31... Qg6+ {[%clk 0:00:44.9]} 32.
Kh2 {[%clk 0:00:29.6]} 32... Nf5 {[%clk 0:00:38]} 33. Rg1 {[%clk 0:00:26.5]}
33... Qh5 {[%clk 0:00:33.7]} 34. Reg4 {[%clk 0:00:21.2]} 34... Kh8 {[%clk
0:00:23.6]} 35. Be4 {[%clk 0:00:18.6]} 35... Rg8 {[%clk 0:00:13.9]} 36. Bxf5
{[%clk 0:00:18]} 36... Qxf5 {[%clk 0:00:13.3]} 37. Bxh6 {[%clk 0:00:10.8]} 37...
Qxf2+ {[%clk 0:00:10.9]} 38. Kxh3 {[%clk 0:00:11]} 38... Qf3+ {[%clk 0:00:06.5]}
39. Kh2 {[%clk 0:00:11.1]} 39... Qf2+ {[%clk 0:00:06.5]} 40. R1g2 {[%clk
0:00:11.4]} 40... Qf5 {[%clk 0:00:03]} 41. Bxg7+ {[%clk 0:00:10.9]} 41... Rxg7
{[%clk 0:00:01.9]} 42. Rh4+ {[%clk 0:00:10.9]} 1-0

[Event "*** SCC Grand Prix: Titled Tuesday Blitz"]
[Site "Chess.com"]
[Date "2020.10.06"]
[Round "10"]
[White "hungrycaterpillar4"]
[Black "penguingm1"]
[Result "0-1"]
[WhiteElo "2640"]
[BlackElo "2850"]
[TimeControl "180+1"]
[EndTime "11:58:25 PDT"]
[Termination "penguingm1 won by checkmate"]

1. Nf3 {[%clk 0:03:00.8]} 1... d5 {[%clk 0:03:00]} 2. b3 {[%clk 0:03:00.9]} 2...
c5 {[%clk 0:02:58.7]} 3. Bb2 {[%clk 0:03:00.9]} 3... Nc6 {[%clk 0:02:58.8]} 4.
e3 {[%clk 0:03:01.6]} 4... Nf6 {[%clk 0:02:59]} 5. Bb5 {[%clk 0:03:01.8]} 5...
Qb6 {[%clk 0:02:59.7]} 6. Bxc6+ {[%clk 0:03:01]} 6... Qxc6 {[%clk 0:03:00.6]} 7.
Ne5 {[%clk 0:03:01.1]} 7... Qc7 {[%clk 0:02:55.5]} 8. f4 {[%clk 0:03:00.3]} 8...
g6 {[%clk 0:02:55.9]} 9. O-O {[%clk 0:02:59.3]} 9... Bg7 {[%clk 0:02:56]} 10. d3
{[%clk 0:02:59.7]} 10... Ng4 {[%clk 0:02:55.9]} 11. Qe2 {[%clk 0:02:38]} 11...
Nxe5 {[%clk 0:02:38.4]} 12. fxe5 {[%clk 0:02:38.9]} 12... Bxe5 {[%clk
0:02:38.9]} 13. Bxe5 {[%clk 0:02:38.7]} 13... Qxe5 {[%clk 0:02:39.8]} 14. Nd2
{[%clk 0:02:39.1]} 14... O-O {[%clk 0:02:27.1]} 15. Nf3 {[%clk 0:02:25.8]} 15...
Qc3 {[%clk 0:02:16]} 16. Qf2 {[%clk 0:02:25.1]} 16... Bd7 {[%clk 0:01:54.9]} 17.
Rae1 {[%clk 0:02:23.4]} 17... Bc6 {[%clk 0:01:34.9]} 18. Qh4 {[%clk 0:02:21.4]}
18... f6 {[%clk 0:01:33.1]} 19. Re2 {[%clk 0:02:14.1]} 19... Rad8 {[%clk
0:01:27.6]} 20. Ref2 {[%clk 0:02:13.3]} 20... Rf7 {[%clk 0:01:11.7]} 21. Qh6
{[%clk 0:02:11.1]} 21... Rdf8 {[%clk 0:00:58.7]} 22. h4 {[%clk 0:02:11.5]} 22...
Bd7 {[%clk 0:00:50.8]} 23. h5 {[%clk 0:02:08.4]} 23... Rg7 {[%clk 0:00:50.9]}
24. d4 {[%clk 0:01:41.3]} 24... g5 {[%clk 0:00:33.2]} 25. Ne5 {[%clk 0:01:16.8]}
25... Bc8 {[%clk 0:00:07.8]} 26. Nf3 {[%clk 0:01:02.7]} 26... Qxe3 {[%clk
0:00:06.6]} 27. Re1 {[%clk 0:01:03.3]} 27... Qc3 {[%clk 0:00:06.3]} 28. Rfe2
{[%clk 0:00:56.7]} 28... e6 {[%clk 0:00:04.2]} 29. Rf2 {[%clk 0:00:47]} 29... g4
{[%clk 0:00:04]} 30. Re3 {[%clk 0:00:43.8]} 30... Qa1+ {[%clk 0:00:03.5]} 31.
Re1 {[%clk 0:00:44.2]} 31... Qc3 {[%clk 0:00:03.5]} 32. Re3 {[%clk 0:00:44.6]}
32... Qa5 {[%clk 0:00:02.6]} 33. Nh4 {[%clk 0:00:39.5]} 33... cxd4 {[%clk
0:00:03]} 34. Rg3 {[%clk 0:00:39.6]} 34... Qc7 {[%clk 0:00:03.1]} 35. Rd3 {[%clk
0:00:33.8]} 35... e5 {[%clk 0:00:03.3]} 36. Qd2 {[%clk 0:00:28.7]} 36... Qc6
{[%clk 0:00:02.9]} 37. h6 {[%clk 0:00:28.8]} 37... Rg5 {[%clk 0:00:03.2]} 38.
Rg3 {[%clk 0:00:27.6]} 38... Qe8 {[%clk 0:00:02.9]} 39. Rxf6 {[%clk 0:00:22]}
39... Qh5 {[%clk 0:00:03.3]} 40. Rxf8+ {[%clk 0:00:22.2]} 40... Kxf8 {[%clk
0:00:03.6]} 41. Qb4+ {[%clk 0:00:20.7]} 41... Ke8 {[%clk 0:00:03.5]} 42. Qc5
{[%clk 0:00:10.1]} 42... Bd7 {[%clk 0:00:03.4]} 43. Qxa7 {[%clk 0:00:06.3]}
43... Qxh4 {[%clk 0:00:03.5]} 44. Qb8+ {[%clk 0:00:03.6]} 44... Ke7 {[%clk
0:00:04]} 45. Rd3 {[%clk 0:00:04.2]} 45... Qe1+ {[%clk 0:00:04.1]} 46. Kh2
{[%clk 0:00:04.4]} 46... Rh5+ {[%clk 0:00:04.6]} 47. Rh3 {[%clk 0:00:05]} 47...
g3# {[%clk 0:00:05.5]} 0-1